Cogmind - Beta 12 @@@ ROGUE MODE // 2023.04.01 @ 15:51:59 Player: wchar_t Result: Destroyed self with Improved Grenade Launcher Performance ------------- Evolutions (0) 0 Regions Visited (2) 400 Robots Destroyed (39) 195 Value Destroyed (1021) 1021 Prototype IDs (1) 20 Alien Tech Used (0) 0 Bonus (-6) -6 TOTAL SCORE: 1630 Bonus ------- Follower Combat Kills 25 Friendly Fire -31 Cogmind --------- Core Integrity 0/250 Matter 207/300 Energy 100/100 System Corruption 3% Temperature Cool (13) Movement Walking (120) Location -10/Mines Parts ------- > --- POWER (1) -------- (None) > --- PROPULSION (2) --- Aluminum Leg Aluminum Leg > --- UTILITY (2) ------ Medium Storage Unit > --- WEAPON (2) ------- Improved Grenade Launcher > --- INVENTORY (10) --- Light Nuclear Core Aluminum Leg Aluminum Leg Aluminum Leg Advanced Targeting Computer Thief Drone Bay (3/3) Assault Rifle Assault Rifle Assault Rifle Improved Grenade Launcher Peak State ------------ > --- POWER ------------ Light Nuclear Core > --- PROPULSION ------- Aluminum Leg Aluminum Leg > --- UTILITY ---------- Medium Storage Unit Thief Drone Bay > --- WEAPON ----------- Field Laser Assault Rifle > --- INVENTORY -------- Light Nuclear Core Aluminum Leg Aluminum Leg Aluminum Leg Advanced Targeting Computer Beam Cannon Assault Rifle Assault Rifle Improved Grenade Launcher Improved Grenade Launcher [Rating: 18] Favorites ----------- Power Ion Engine Engine Ion Engine Power Core Light Nuclear Core Propulsion Aluminum Leg Leg Aluminum Leg Utility Medium Storage Unit Device Seismic Detector Storage Medium Storage Unit Weapon Assault Rifle Energy Gun Field Laser Ballistic Gun Assault Rifle Launcher Grenade Launcher Build | -11 -10 -10 ------- Run | Jun Mat Min Slots Evolved . | . . . Power . | . . . Propulsion . | . . . Utility . | . . . Weapon . | . . . Parts Attached 36 | 7 17 12 Power 3 | 1 1 1 Engine 2 | 1 1 . Core 1 | . . 1 Reactor . | . . . Propulsion 13 | 2 9 2 Treads . | . . . Leg 13 | 2 9 2 Wheel . | . . . Hover . | . . . Flight . | . . . Utility 6 | 1 3 2 Device 4 | . 2 2 Storage 2 | 1 1 . Processor . | . . . Hackware . | . . . Protection . | . . . Artifact . | . . . Weapon 14 | 3 4 7 Energy Gun 1 | . . 1 Energy Cannon . | . . . Ballistic Gun 8 | 3 3 2 Ballistic Cannon . | . . . Launcher 5 | . 1 4 Special Weapon . | . . . Impact Weapon . | . . . Slashing Weapon . | . . . Piercing Weapon . | . . . Special Melee Weapon . | . . . Unidentified Prototypes 1 | . . 1 Parts Lost 5 | . 2 3 Power 1 | . . 1 Propulsion . | . . . Utility 1 | . . 1 Weapon 3 | . 2 1 Highest Loss Streak 3 | . 1 3 To Critical Strikes . | . . . Average Slot Usage (%) 90 | . 85 99 Engine 10 | . 14 5 Core 3 | . . 8 Leg 28 | . 28 28 Device 7 | . 4 13 Storage 14 | . 14 14 Energy Gun 3 | . . 8 Ballistic Gun 20 | . 22 15 Launcher 1 | . . 3 Naked Turns . | . . . Heaviest Build 25 | 14 19 25 Greatest Support 20 | 20 20 20 Greatest Overweight (x) 1 | 1 . 1 Average Overweight (x) . | . . . Largest Inventory Capacity 10 | 8 10 10 Average Capacity 9 | 7 9 10 Most Carried 10 | 5 10 10 Average Carried 8 | 2 8 9 Final Capacity 10 | 8 10 10 Final Carried 10 | 4 10 10 Class Distribution -------------------- 100% | Mutant Dominant Class ---------------- Mutant | -10/Materials Mutant | -10/Mines Resources | -11 -10 -10 ----------- Run | Jun Mat Min Matter Collected 1025 | 232 599 194 Remotely . | . . . Salvage Created 1219 | . 951 268 Parts 84 | . 59 25 Haulers Intercepted 2 | . 2 . Recyclers Shooed 3 | . 3 . Parts Field Recycled . | . . . Retrieved Matter . | . . . Parts Self-Destructed . | . . . Prevented . | . . . Kills | -11 -10 -10 ------- Run | Jun Mat Min Combat Hostiles Destroyed 39 | . 20 19 Guns 14 | . 12 2 AOE 25 | . 8 17 Classes Destroyed 9 | . 6 3 Worker 2 | . 1 1 Builder 1 | . 1 . Hauler 2 | . 2 . Recycler 1 | . 1 . Mechanic 1 | . . 1 Watcher 1 | . 1 . Swarmer 6 | . . 6 Grunt 25 | . 20 5 Assembled 8 | . . 8 Best Kill Streak 9 | . 9 8 Combat Bots Only 8 | . 8 8 Max Kills in Single Turn 4 | . 2 4 Gunslinging . | . . . Exploded 4 | . 2 4 Melee . | . . . Uniques/NPCs Destroyed . | . . . Combat | -11 -10 -10 -------- Run | Jun Mat Min Damage Taken 1335 | . 844 491 Core 268 | . 144 124 Absorbed by Shields . | . . . Core Remaining (%) 100 | 100 . . Volleys Fired 131 | . 114 17 Largest 2 | . 2 2 Hottest 99 | . 40 99 Shots Fired 196 | . 167 29 Gun 176 | . 158 18 Cannon . | . . . Launcher 20 | . 9 11 Special . | . . . Kinetic 171 | . 158 13 Thermal 5 | . . 5 Explosive 20 | . 9 11 Electromagnetic . | . . . Robot Hit Streak 16 | . 16 11 Robot Miss Streak 6 | . 3 6 Penetration Max . | . . . Secondary Targets 1 | . 1 . Max Gunslinging Chain 1 | . 1 . Shots Hit Robots 119 | . 107 12 Core Hits 88 | . 57 31 Critical Kills . | . . . Critical Parts Destroyed . | . . . Critical Strikes . | . . . Melee Attacks . | . . . Impact . | . . . Slashing . | . . . Piercing . | . . . Sneak Attacks . | . . . Combat Hostiles . | . . . Follow-up Attacks . | . . . Damage Inflicted 3089 | . 1769 1320 Guns 1289 | . 1125 164 Cannons . | . . . Explosions 1740 | . 587 1153 Melee . | . . . Ramming 60 | . 57 3 Kinetic 1255 | . 1125 130 Thermal 34 | . . 34 Explosive 1740 | . 587 1153 Electromagnetic . | . . . Impact . | . . . Slashing . | . . . Piercing . | . . . Highest Corruption 3 | . 3 3 Average Corruption 2 | . 2 3 Corruption Purged . | . . . Corruption Blocked . | . . . Effects 15 | . 5 10 Message Errors 2 | . . 2 Matter Fused 4 | . 2 2 Heat Flow Errors 1 | . . 1 Energy Discharges 1 | . . 1 Parts Rejected 2 | . 2 . Data Loss (minor) 2 | . . 2 Weapon Failures 3 | . 1 2 Overload Shots . | . . . Overflow Damage 34 | . . 34 Projectiles . | . . . Explosions 34 | . . 34 Melee . | . . . Knockbacks . | . . . Impact . | . . . Kinetic . | . . . Secondary . | . . . Self-Inflicted Damage 115 | . . 115 Shots 4 | . . 4 Rammed . | . . . Targets Rammed 11 | . 10 1 Kicked 11 | . 10 1 Crushed . | . . . Highest Temperature 155 | . 21 155 Average Temperature 29 | . 7 54 Received Heat Transfer 581 | . 474 107 Siege Activations . | . . . Robots Corrupted . | . . . Combat Hostiles . | . . . Parts Fried . | . . . Impact Corruptions . | . . . Robots Melted . | . . . Combat Hostiles . | . . . Parts Melted . | . . . Heat Transferred 74 | . . 74 Parts Sabotaged . | . . . Parts Stolen . | . . . Parts Stripped . | . . . Power Chain Reactions . | . . . Missiles Intercepted . | . . . Alert | -11 -10 -10 ------- Run | Jun Mat Min Peak Influence 328 | . 328 314 Initial 112 | . . 112 Average 192 | . 178 242 Maximum Alert Level 1 | . 1 1 Low Security (%) 51 | 100 61 26 Level 1 48 | . 38 73 Level 2 . | . . . Level 3 . | . . . Level 4 . | . . . Level 5 . | . . . High Security . | . . . Max Security . | . . . Squads Dispatched 8 | . 7 1 Investigation 4 | . 4 . Extermination . | . . . Reinforcement 3 | . 3 . Assault 1 | . . 1 Garrison . | . . . Intercept . | . . . Searches Triggered . | . . . Construction Impeded . | . . . Haulers Reinforced . | . . . Active Scanning Responses . | . . . Cargo Convoy Interrupts . | . . . Stealth | -11 -10 -10 --------- Run | Jun Mat Min Distress Signals 2 | . 2 . Communications Jammed . | . . . Distress Signals . | . . . Times Spotted 70 | . 42 28 Peak Tracking Total 11 | . 6 11 Tactical Retreats 1 | . . 1 Traps | -11 -10 -10 ------- Run | Jun Mat Min Traps Triggered 6 | . 6 . Indirectly . | . . . Trap Hack Attempts . | . . . Triggered . | . . . Disarmed . | . . . Reprogrammed . | . . . Reused . | . . . Traps Extracted . | . . . Installed . | . . . Triggered . | . . . Machines | -11 -10 -10 ---------- Run | Jun Mat Min Machines Disabled 1 | . 1 . Max in Single Turn 1 | . 1 . Machines Repaired . | . . . Machines Sabotaged . | . . . Overloaded Fab Kills . | . . . Hacking | -11 -10 -10 --------- Run | Jun Mat Min Machines Accessed 5 | . 3 2 Terminals 3 | . 3 . Fabricators . | . . . Repair Stations . | . . . Recycling Units . | . . . Scanalyzers . | . . . Garrison Access . | . . . Total Hacks 9 | . 7 2 Successful 5 | . 3 2 Failed 4 | . 4 . Catastrophic 3 | . 3 . Database Lockouts . | . . . Manual 2 | . 2 . Terminals 7 | . 7 . Fabricators . | . . . Repair Stations . | . . . Recycling Units . | . . . Scanalyzers . | . . . Garrison Access . | . . . Terminal Hacks 5 | . 3 2 Open Door 2 | . . 2 Branch Access Points 1 | . 1 . Hauler Manifests 1 | . 1 . Registered Prototypes 1 | . 1 . Fabricator Hacks . | . . . Repair Station Hacks . | . . . Recycling Unit Hacks . | . . . Scanalyzer . | . . . Garrison Access Hacks . | . . . Unauthorized Hacks . | . . . Terminals . | . . . Fabricators . | . . . Repair Stations . | . . . Recycling Units . | . . . Scanalyzers . | . . . Garrison Access . | . . . Data Cores Recovered . | . . . Used . | . . . Hacking Detections 2 | . 2 . Full Trace Events 1 | . 1 . Feedback Events . | . . . Feedback Blocked . | . . . Robot Schematics Acquired . | . . . Robots Built . | . . . Authchips . | . . . Time . | . . . Total Robot Build Rating . | . . . Part Schematics Acquired . | . . . Parts Built . | . . . Authchips . | . . . Time . | . . . Total Part Build Rating . | . . . Parts Repaired . | . . . Time . | . . . Parts Recycled . | . . . Recycled Matter . | . . . Retrieved Matter . | . . . Retrieved Components . | . . . Parts Scanalyzed . | . . . Part Schematics Acquired . | . . . Parts Damaged . | . . . Bothacking | -11 -10 -10 ------------ Run | Jun Mat Min Used RIF Installer . | . . . Robots Hacked . | . . . Non-combat . | . . . Combat . | . . . Robot Hacks Applied . | . . . Relay Couplers Released . | . . . Fabnet Peak Effective % . | . . . Robots Rewired . | . . . Allies Hacked . | . . . Hacks Repelled . | . . . Allies | -11 -10 -10 -------- Run | Jun Mat Min Total Allies 1 | . . 1 Largest Group 1 | . . 1 Highest-Rated Group 31 | . . 31 Highest-Rated Ally 31 | . . 31 Total Orders . | . . . Ally Attacks 2 | . . 2 Total Damage 43 | . . 43 Kills 1 | . . 1 Allies Corrupted . | . . . Allies Melted . | . . . Intel | -11 -10 -10 ------- Run | Jun Mat Min Robot Analysis Total . | . . . Derelict Logs Recovered 1 | . . 1 Drone Launches . | . . . Drone Recoveries . | . . . Exploration | -11 -10 -10 ------------- Run | Jun Mat Min Turns Passed 1772 | 73 1111 588 Spaces Moved 976 | 51 647 278 Core 3 | 3 . . Treads . | . . . Legs 973 | 48 647 278 Wheels . | . . . Hover . | . . . Flight . | . . . Fastest Speed 50 | 50 120 120 Average Speed 135 | 117 120 174 Slowest Speed 190 | 120 120 190 Overloaded Moves . | . . . Propulsion Burnouts . | . . . Robots Hopped . | . . . Cave-ins Triggered . | . . . Exploration Rate (%) 53 | 4 98 58 Regions Visited 2 Branch Regions 1 Pre-discovered Areas . | . . . Known Exits Taken 1 | . 1 . Unknown Exits Taken 1 | 1 . . Scrap Searched 1 | . . 1 Spaces Dug 18 | . . 18 Terrain Destroyed 156 | . 61 95 Melee . | . . . Projectile . | . . . AOE 156 | . 61 95 Terrain Rammed . | . . . Walls Destroyed . | . . . Machines Disabled . | . . . Actions | -11 -10 -10 --------- Run | Jun Mat Min Total 1245 | 61 828 356 Wait 54 | . 22 32 Move 974 | 50 646 278 Hop . | . . . Pick Up 16 | 4 7 5 Fast Attach 13 | 5 6 2 Attach 3 | 1 2 . Detach 2 | . 1 1 Swap 20 | 1 9 10 Drop 21 | . 11 10 Fire 131 | . 114 17 Melee . | . . . Ram . | . . . Kick 11 | . 10 1 Crush . | . . . Escape Stasis . | . . . Rewire . | . . . Trap . | . . . Miscellaneous . | . . . Route ------- -11/Junkyard -10/Materials (discovered 4 exits: [*Mat x3] / *Min) -10/Mines (discovered 2 exits: [*Mat x2]) History --------- Turn | Location | Event 4 | -11/Junkyard | Discovered new exit (range 16) 74 | -11/Junkyard | Entered Materials 302 | -10/Materials | Build established: Mutant 361 | -10/Materials | Discovered new exit (range 9) 610 | -10/Materials | Destroyed 8 combat bots 612 | -10/Materials | Discovered new exit (range 15) 682 | -10/Materials | Core integrity fell below 50% 777 | -10/Materials | Discovered new exit (range 9) 1037 | -10/Materials | Identified exit to Mines 1072 | -10/Materials | Discovered new exit (range 15) 1185 | -10/Materials | Entered Mines 1231 | -10/Mines | Learned Materials terminal intel 1387 | -10/Mines | Met a Derelict who couldn't figure out how to use a Trap Extractor 1431 | -10/Mines | Discovered new exit (range 9) 1555 | -10/Mines | Discovered new exit (range 6) 1558 | -10/Mines | Met a Derelict testing a Signal Generator 1716 | -10/Mines | Found the Drone Emporium 1732 | -10/Mines | Found Prototype Device 1732 | -10/Mines | Identified Thief Drone Bay 1751 | -10/Mines | Assembled infested the area 1770 | -10/Mines | Core integrity fell below 20% 1773 | -10/Mines | Destroyed self with Improved Grenade Launcher Last Messages --------------- squad. 01760_ as-84284 destroyed. 01762_ as-38008 destroyed. 01763_ CB-4QL(g) knocked back. 01764_ as-78990 sneak attacks. 01764_ as-78990 destroyed. 01766_ Seismic Detector destroyed. 01769_ as-32090 destroyed. 01769_ as-63594 destroyed. 01769_ Destroyed Asb. F-torch. 01769_ CB-4QL(g) destroyed. 01771_ Lgt. Nuclear Core destroyed. 01771_ as-75643 destroyed. 01771_ as-23219 destroyed. 01771_ as-96082 destroyed. 01771_ as-46916 destroyed. 01772_ Field Laser destroyed. 01773_ Destroyed Asb. Hover Unit. 01773_ as-80414 destroyed. 01773_ as-18911 destroyed. Map ----- +----------------------------------------------------+ | ?# #??????????? | | ?# #?????????????? | | ?## [ ####?????????????? | | ??## ######????????????? | | ???## ### ##???###?????? | | ????# ##### ## #???# ?????? | | ????# #???## ##??# #?????? | | ????# #????# #??# #?????? | | ????# #????## ##?# #?????? | | ????# #????## #?# #?##### | | ????# ####?# ### ### # | | ????# ## ## | | ????# ## ## ### | | ????#### ### #### ####### ## | | ???????# #?####??# ##????## | | ???????# #???????# ##????## | | ???????# #######?# #????## | | ???????# #?## ##???## | | ???????# ##### #??####????# | | ???????# #????????????????# | | ???????# #????????????????# | | ???????# #????????????????# # | | ???????# ##???????????????## ## | | ????#### ###?????????????## #? | | ???##""## # #????????????## ## | | ???#" * # @ #?????????????# # | | ???#"] %a #?????????????# < | | ???#" #?????????????## | | ???#" #Xa #??????????????## # | | ???##""##%% ###????????????# # | | ????##### #???????# ## | | ????????# ###???????????## ##? | | ????????# % ##??????????????###?? | | ????????# ##???????????????????? | | ????????## #????????????????????? | | ?????????### % #????????????????????? | | ???????????? ##????????????????????? | | ???????????? #?????????????????????? | | ????????????*|#?????????????????????? | | ????????????=%#?????????????????????? | | ???????????? a#?????????????????????? | | ????????????? #?????????????????????? | | ????????????? #?????????????????????? | | ????????????? ?????????????????????? | | ?????????????? ?????????????????????? | | ????????????????????????????????????? | | ????????????????????????????????????? | | ????????????????????????????????????? | | ????????????????????????????????????? | | ????????????????????????????????????? | +----------------------------------------------------+ Best States ------------- Heat Dissipation 25 Energy Generation 14 Energy Capacity 250 Matter Stores 300 Matter Capacity 300 Sight Range 16 Terrain Scan Density 10 Evasion (%) 55 Item Schematics ----------------- None Robot Schematics ------------------ None Fabricated ------------ Nothing Alien Tech Used ----------------- None Achievements -------------- None Challenges ------------ None Game ------ Seed BiocellTiamatScythe Manual? 0 Play Time 00:16:24 Cumulative 202.6 hours Start 2023.04.01 @ 15:38:02 End 2023.04.01 @ 15:51:59 Sessions 1 Manual Loads 0 Difficulty Rogue Special Mode None Game No. 85 Rogue 69 Adventurer 8 Explorer 8 Win Type - Total 16 Types 10/0/3/1/1/1/0/0/0 Lore% 85 Gallery% 80 Achievement% 73 Wizard Run 0 Options --------- ASCII 1 Keyboard 1 Movement Vi Keybinds 0 Fullscreen 1 Font 18/CogWide Map View 76x50 Tactical HUD 1 Map Filters NONE Filters NONE Steam X RUN: abdee200-01c2-4041-ae4a-585499ec3225